bitfinex/quotes_ETHUSD_20250801
["timestamp","ask_amount","ask_price","bid_price","bid_amount"]
[1754074441580,4.614,3561.6,3560.4,7.42160537]
[1754074441581,4.614,3561.6,3561.5,24.47655569]
[1754074441786,4.614,3561.6,3561.5,20.32854469]
[1754074441951,7.3396,3562.4,3561.8,3.0]
[1754074441952,6.888,3562.4,3561.8,3.0]
[1754074442138,4.612,3562.3,3561.9,8.28668452]
[1754074442337,5.0636,3562.3,3561.8,0.14]
[1754074442539,5.0636,3562.3,3561.9,13.21191]
[1754074442789,5.0636,3562.3,3561.8,0.14]
[1754074442966,7.26136492,3562.1,3561.4,0.21056279]
[1754074443177,7.26136492,3562.1,3560.6,1.8102]
[1754074443384,0.4516,3562.2,3560.6,1.8102]
[1754074443385,2.80817513,3561.1,3560.6,0.2156028]
[1754074443578,4.61,3561.0,3560.9,2.80821512]
[1754074443738,4.61,3561.0,3560.9,1.8102]
[1754074443939,4.61,3561.0,3560.9,27.34326906]
[1754074444161,4.61,3561.0,3560.9,30.34326906]
[1754074444441,2.80734381,3562.1,3561.5,3.0]
[1754074444666,2.80802136,3561.3,3560.9,0.1408]
[1754074444864,2.80785153,3561.5,3561.1,5.658116]
[1754074444865,5.0596,3561.2,3561.1,5.658116]
[1754074445088,5.0596,3561.2,3561.1,0.1408]
[1754074445246,5.0596,3561.2,3561.1,9.732845]
[1754074445445,5.0596,3561.2,3561.1,3.474845]
[1754074445642,5.0596,3561.2,3561.0,0.1408]
[1754074445643,4.608,3561.2,3561.0,0.1408]
[1754074445875,0.4516,3561.1,3560.7,14.166777]
[1754074446064,0.4516,3561.1,3560.9,12.329911]
[1754074446261,4.608,3561.2,3560.9,12.329911]
[1754074446463,4.608,3561.2,3560.9,10.938043]
[1754074446698,0.4516,3561.1,3560.8,0.1408]
[1754074446915,0.4516,3561.0,3560.6,0.35576318]
[1754074447099,0.4516,3561.0,3560.5,0.1408]
[1754074447100,2.80834236,3560.9,3560.5,0.1408]
[1754074447433,0.4516,3560.8,3560.3,0.1408]
[1754074447721,2.8085975,3560.5,3560.1,0.1408]
[1754074447876,0.1408,3560.6,3560.1,0.1408]
[1754074447877,0.4516,3560.4,3560.1,0.1408]
[1754074448074,0.4516,3560.3,3560.0,0.1408]
[1754074448278,4.601,3560.2,3560.1,12.668735]
[1754074448593,9.55548726,3560.7,3560.1,12.668735]
[1754074448594,6.747,3560.7,3560.6,26.68231441]
[1754074448923,11.351,3560.7,3560.6,2.80851541]
[1754074449103,11.351,3560.7,3560.6,4.61871541]
[1754074449311,6.747,3560.7,3560.6,19.01604541]
[1754074449475,1.28008766,3562.3,3560.6,19.46884541]
[1754074449679,11.8006,3562.2,3561.4,2.80782018]
[1754074449881,4.602,3562.1,3561.5,2.80779454]
[1754074450101,7.40933722,3562.1,3561.3,21.452341]
[1754074450314,4.602,3562.1,3561.1,25.345612]
[1754074450518,7.1986,3562.2,3561.1,25.345612]
[1754074450519,4.6,3562.0,3561.3,30.0]
[1754074450730,4.6,3562.0,3561.5,7.50226515]
[1754074451025,5.0516,3562.0,3561.6,12.16364]
[1754074451226,4.601,3561.9,3561.8,2.8075692]
[1754074451376,4.601,3561.9,3561.8,17.6519812]
[1754074451577,6.747,3562.2,3561.8,13.72654693]
[1754074451925,4.598,3562.1,3561.9,15.175861]
[1754074452127,4.598,3562.1,3561.3,12.278763]
[1754074452128,0.4516,3562.0,3561.3,12.278763]
[1754074452419,0.4516,3562.0,3561.3,4.165439]
[1754074452579,4.598,3562.1,3561.5,13.801488]
[1754074452779,4.598,3562.1,3561.2,3.0]
[1754074453010,6.747,3562.2,3562.0,2.807347]
[1754074453221,4.594,3562.1,3561.9,2.80748093]
[1754074453525,4.596,3562.0,3561.9,19.67076938]
[1754074453839,4.596,3562.0,3561.9,17.20601638]
[1754074453994,4.597,3562.0,3561.8,2.238665]
[1754074454321,0.001,3562.0,3561.9,14.704293]
[1754074454624,4.595,3562.0,3561.9,15.612783]
[1754074454781,4.595,3562.0,3561.9,12.112783]
[1754074454979,4.595,3562.0,3561.9,14.92027338]
[1754074455192,4.595,3562.0,3561.9,12.112783]
[1754074455423,4.595,3562.0,3561.9,2.80749038]
[1754074455638,4.591,3562.0,3561.9,24.44129728]
[1754074455928,4.591,3562.0,3561.9,24.88322238]
[1754074456720,4.589,3562.0,3561.9,38.22799038]
[1754074457216,0.001,3562.0,3561.9,38.22799038]
[1754074457405,4.588,3562.0,3561.9,38.83140167]
[1754074457580,4.585,3562.0,3561.9,38.83140167]
[1754074458218,0.001,3562.0,3561.9,34.89394967]
[1754074458575,0.001,3562.0,3561.9,38.50140167]
[1754074458822,0.001,3562.0,3561.9,38.97140167]
[1754074459580,0.001,3562.4,3562.3,5.80717513]
[1754074459824,0.001,3562.4,3562.3,35.80717513]
[1754074460025,0.001,3562.4,3562.3,38.36767513]
[1754074461033,0.001,3562.4,3562.3,37.89767513]
[1754074461232,0.001,3562.4,3562.3,19.50534113]
[1754074461381,4.577,3562.4,3562.3,8.87771113]
[1754074461724,6.8526,3562.4,3562.3,0.14]
[1754074461926,2.80749038,3561.9,3561.8,0.21569373]
[1754074462146,0.14,3562.0,3561.6,6.026496]
[1754074462349,2.8076987,3561.7,3561.5,0.14]
[1754074462641,3.25872686,3561.6,3560.8,2.80833172]
[1754074462801,0.14,3561.3,3560.8,0.1408]
[1754074463002,0.451,3561.2,3560.9,5.458732]
[1754074463249,6.744,3561.7,3560.9,16.422476]
[1754074463250,4.578,3561.1,3560.9,16.422476]
[1754074463439,7.335,3561.7,3561.2,14.099341]
[1754074463622,7.195,3561.7,3561.2,14.099341]
[1754074463813,4.578,3561.6,3561.5,16.5357]
[1754074464016,4.578,3561.6,3561.5,30.26003969]
[1754074464214,4.578,3561.6,3561.5,27.23465969]
[1754074464642,4.578,3561.6,3561.5,2.7448]
[1754074465246,4.578,3561.6,3561.5,0.14]
[1754074465542,2.80827503,3561.0,3560.2,2.80876812]
[1754074465699,4.577,3560.9,3560.4,4.951398]
[1754074465899,4.576,3560.8,3560.6,10.898833]
[1754074466104,4.576,3560.8,3560.6,5.890833]
[1754074466453,1.1322,3561.6,3560.0,5.16360841]
[1754074466454,0.591,3561.6,3560.7,2.0913]
[1754074466612,0.591,3561.6,3561.1,0.1408]
[1754074466613,4.574,3561.5,3561.1,0.1408]
[1754074466821,4.574,3561.5,3561.4,9.17586353]
[1754074467242,0.14,3561.6,3561.3,11.459161]
[1754074467408,4.575,3561.5,3561.2,5.503017]
[1754074467603,2.2756,3561.4,3561.1,0.1408]
[1754074467927,0.14,3561.3,3560.8,10.20152658]
[1754074468102,4.575,3561.2,3560.9,2.83636158]
[1754074468298,4.575,3561.2,3560.8,3.0]
[1754074468541,5.026,3561.2,3560.9,7.961]
[1754074468718,5.026,3561.2,3560.9,5.858982]
[1754074469051,4.575,3561.2,3560.8,0.1408]
[1754074469342,0.451,3561.1,3560.9,6.54015]
[1754074469583,0.451,3561.1,3560.8,0.1408]
[1754074469858,0.451,3561.0,3560.6,5.365029]
[1754074470162,0.451,3561.0,3560.5,5.80852377]
[1754074470163,4.63281643,3561.0,3560.5,3.0]
[1754074470359,4.575,3561.2,3560.6,3.644412]
[1754074470558,0.1408,3561.0,3560.7,5.697512]
[1754074470744,0.1408,3561.0,3560.6,9.334261]
[1754074470946,0.1408,3561.0,3560.5,3.0]
[1754074471150,0.451,3560.9,3560.5,3.0]
[1754074471350,0.14,3561.4,3560.9,2.8082788]
[1754074471660,4.568,3561.3,3561.0,1.9505]
[1754074471864,5.019,3561.2,3560.6,2.80848204]
[1754074472060,9.79246729,3561.2,3560.5,2.80857233]
[1754074472264,6.9844,3561.2,3560.8,3.308987]
[1754074472569,0.451,3561.1,3560.7,3.479736]
[1754074472862,0.1408,3560.9,3560.7,4.509057]
[1754074473162,0.1408,3560.9,3560.8,4.506257]
[1754074473363,4.571,3560.8,3560.4,2.94945624]
[1754074473659,4.571,3560.8,3560.7,7.14017254]
[1754074474021,4.571,3560.8,3560.7,9.09067254]
[1754074474219,4.3,3561.0,3560.9,21.5647048]
[1754074474464,8.868,3561.0,3560.9,24.3758798]
[1754074474628,8.867,3561.0,3560.9,24.8458798]
[1754074474838,8.867,3561.0,3560.9,27.9866798]
[1754074475042,0.001,3562.4,3561.6,2.80772686]
[1754074475235,11.311,3561.7,3561.2,3.0]
[1754074475624,11.311,3561.7,3561.6,2.80772686]
[1754074475865,11.311,3561.7,3561.5,8.893147]
[1754074476040,11.311,3561.7,3561.6,8.893147]
[1754074476243,6.744,3561.7,3561.6,35.22822686]
[1754074476426,11.31,3561.7,3561.6,38.36822686]
[1754074476626,11.31,3561.7,3561.6,8.36822686]
[1754074476969,0.001,3562.0,3561.9,32.04066138]
[1754074477266,4.565,3562.0,3561.9,5.80749038]
[1754074477467,4.565,3562.0,3561.9,31.52421938]
[1754074477670,6.745,3563.0,3562.3,5.80717513]
[1754074477965,6.745,3563.0,3562.3,15.92363413]
[1754074477966,4.563,3562.4,3562.3,15.92363413]
[1754074478139,0.001,3562.4,3562.3,15.71991213]
[1754074478340,4.563,3562.4,3562.3,21.20468713]
[1754074478531,4.563,3562.4,3562.3,23.15518713]
[1754074478867,0.001,3562.4,3562.3,23.15518713]
[1754074479050,4.561,3562.4,3562.3,23.62518713]
[1754074479449,4.561,3562.4,3562.3,38.36767513]
[1754074480027,4.561,3562.4,3562.3,32.67769813]
[1754074480443,0.001,3562.4,3562.3,38.36767513]
[1754074480659,4.558,3562.4,3562.3,0.14]
[1754074480842,4.558,3562.4,3562.3,4.95495713]
[1754074481045,4.558,3562.4,3562.2,0.14]
[1754074481267,0.451,3562.3,3562.0,15.246558]
[1754074481530,2.94725394,3562.2,3561.5,2.80774288]
[1754074481734,0.451,3562.1,3561.7,0.14]
[1754074481926,0.14,3561.8,3561.3,0.14]
[1754074482131,0.55,3561.6,3560.6,0.21244911]
[1754074482355,0.14,3561.3,3560.7,0.1408]
[1754074482559,0.14,3561.3,3560.8,7.310988]
[1754074482755,0.451,3561.5,3560.8,1.9505]
[1754074483066,0.591,3562.0,3561.4,2.94784413]
[1754074483298,4.557,3561.9,3561.5,16.072764]
[1754074483580,5.08317588,3561.8,3561.1,2.80812108]
[1754074483781,5.08317588,3561.8,3561.4,2.80783317]
[1754074483782,0.14,3561.7,3561.4,2.80783317]
[1754074484076,5.008,3561.6,3561.2,3.1408]
[1754074484243,5.008,3561.6,3561.3,6.100085]
[1754074484665,2.2756,3561.5,3560.6,0.20804881]
[1754074484974,2.80818213,3561.1,3560.7,6.266827]
[1754074485173,5.008,3561.0,3560.7,6.266827]
[1754074485513,5.008,3561.0,3560.8,8.868827]
[1754074485802,4.557,3561.0,3560.7,10.314594]
[1754074486008,0.14,3561.3,3560.8,0.1408]
[1754074486302,6.5825,3561.5,3561.0,10.538223]
[1754074486303,4.3,3561.5,3561.0,10.538223]
[1754074486609,4.557,3561.2,3561.0,10.538223]
[1754074486807,4.557,3561.2,3561.1,21.60705528]
[1754074487096,4.557,3561.2,3561.1,21.74785528]
[1754074487803,4.557,3561.2,3561.1,24.59065528]
[1754074487966,0.14,3561.7,3561.6,6.435845]
[1754074488359,0.14,3561.7,3561.6,7.52762986]
[1754074488514,0.5979,3562.3,3561.7,2.80758346]
[1754074488695,4.557,3562.2,3561.8,0.14]
[1754074489215,4.557,3562.2,3562.0,9.375861]
[1754074489414,4.557,3562.1,3561.5,21.465002]
[1754074489613,0.001,3562.4,3561.3,0.4344]
[1754074489614,0.001,3562.4,3562.1,2.8072648]
[1754074489765,0.001,3562.4,3562.3,2.80717513]
[1754074489969,4.558,3562.4,3562.3,20.57699313]
[1754074490296,0.001,3562.4,3562.3,33.72624213]
[1754074490496,4.558,3562.4,3562.3,0.14]
[1754074490695,0.001,3562.4,3562.3,19.78513013]
[1754074491006,0.001,3562.4,3562.3,15.96841013]
[1754074491511,4.558,3562.4,3562.3,32.94717513]
[1754074492421,4.558,3562.4,3562.3,34.79987513]
[1754074492613,4.558,3562.4,3562.3,0.14]
[1754074492784,4.558,3562.4,3562.3,12.96179513]
[1754074493186,5.0159,3562.4,3562.3,6.433349]
[1754074493391,7.0013,3562.4,3562.1,8.664149]
[1754074493628,0.4579,3562.3,3562.1,8.664149]
[1754074493800,4.558,3562.4,3562.2,7.568769]
[1754074494001,4.558,3562.4,3562.2,2.735133]
[1754074494326,0.4579,3562.3,3561.6,2.80767402]
[1754074494529,2.4433,3562.3,3562.0,2.80738014]
[1754074494729,2.4433,3562.3,3562.0,3.900342]
[1754074494933,2.4433,3562.3,3562.1,3.980149]
[1754074495130,2.4433,3562.3,3561.1,4.8527]
[1754074495131,2.4433,3562.2,3560.3,0.57704887]
[1754074495441,0.4579,3562.2,3561.8,2.853884]
[1754074495621,0.62546469,3562.3,3562.0,2.624331]
[1754074495806,0.4579,3562.2,3561.9,5.786708]
[1754074496131,7.36511848,3562.4,3561.1,1.8527]
[1754074496336,2.4433,3562.1,3561.5,2.80775773]
[1754074496648,2.4433,3562.1,3561.1,10.01462]
[1754074496996,2.4433,3562.1,3561.6,2.80771946]
[1754074497196,1.9854,3562.1,3561.6,2.80771946]
[1754074497396,3.54371063,3562.3,3561.6,2.80771946]
[1754074497397,2.4433,3562.0,3561.6,2.80771946]
[1754074497599,4.556,3561.9,3561.2,10.01462]
[1754074497828,4.556,3561.9,3561.2,10.22973132]
[1754074498141,4.556,3561.9,3560.6,2.80844481]
[1754074498142,4.556,3561.9,3556.2,10.54279288]
[1754074498444,10.25466492,3561.8,3558.5,6.330535]
[1754074498610,0.55,3561.6,3560.7,3.258]
[1754074498790,2.15546649,3561.7,3560.1,3.0]
[1754074498791,2.80788453,3561.4,3560.5,3.545213]
[1754074498995,2.80808979,3561.2,3560.4,6.570898]
[1754074499221,2.4433,3561.1,3560.4,3.925118]
[1754074499421,2.4433,3561.1,3560.7,6.330535]
[1754074499635,0.4579,3561.0,3560.7,6.330535]
[1754074499934,0.4579,3561.0,3560.1,3.0]
[1754074499935,0.4579,3561.0,3560.8,6.330535]
[1754074500252,4.556,3560.9,3560.7,2.80843654]
[1754074500401,7.2019,3561.9,3561.0,3.0]
[1754074500602,2.80778533,3561.6,3560.0,4.556]
[1754074500801,0.4579,3561.5,3560.9,2.80822472]
[1754074501004,0.4579,3561.5,3560.3,2.80874202]
[1754074501005,2.80796338,3561.3,3560.3,2.80874202]
[1754074501217,5.0139,3561.2,3560.4,2.80867318]
[1754074501424,7.36404326,3561.2,3560.5,3.0]
[1754074501745,0.4579,3561.8,3561.4,9.13836639]
[1754074501942,4.556,3561.7,3561.4,6.330535]
[1754074502115,0.4579,3561.6,3561.0,3.0]
[1754074502443,7.2019,3561.9,3561.4,3.0]
[1754074502645,6.744,3561.9,3561.8,7.147866]
[1754074502807,11.3,3561.9,3561.8,10.16862389]
[1754074503428,0.001,3562.2,3562.1,9.13786775]
[1754074503593,4.557,3562.2,3562.1,2.80733275]
[1754074503873,4.557,3562.2,3562.1,9.13786775]
[1754074504072,4.557,3562.2,3562.1,9.27786775]
[1754074504775,4.557,3562.2,3562.1,2.94733275]
[1754074504985,4.557,3562.2,3562.1,5.72952175]
[1754074505672,4.557,3562.2,3562.1,9.27786775]
[1754074505880,4.557,3562.2,3562.1,2.209299]
[1754074506035,0.1,3561.9,3561.8,2.606184]
[1754074506240,2.5433,3561.9,3560.3,4.556]
[1754074506440,2.5433,3561.9,3561.6,0.14]
[1754074506667,0.4579,3561.8,3561.6,0.14]
[1754074506849,4.90933,3561.7,3559.9,4.555]
[1754074507061,4.90933,3561.7,3561.4,2.9478458]
[1754074507289,0.4579,3561.6,3561.4,0.14]
[1754074507609,0.5579,3561.5,3561.4,2.673676]
[1754074507903,0.5579,3561.5,3561.4,5.48156053]
[1754074508055,0.5579,3561.5,3561.4,8.48156053]
[1754074508254,0.5579,3561.5,3561.4,5.673676]
[1754074508496,4.555,3561.5,3561.4,6.16303411]
[1754074508674,0.1,3561.9,3561.8,9.330535]
[1754074508996,0.1,3561.9,3561.4,3.16296771]
[1754074508997,2.80757156,3561.8,3561.5,4.275816]
[1754074509202,0.1,3561.5,3561.3,0.14]
[1754074509361,4.555,3561.4,3561.3,0.14]
[1754074509562,4.4,3561.5,3561.4,2.507375]
[1754074509911,9.4129,3561.5,3561.3,0.14]
[1754074510207,0.1,3561.0,3560.9,2.393427]
[1754074510408,4.655,3561.0,3560.9,2.393427]
[1754074510565,5.1129,3561.0,3560.9,2.393427]
[1754074511103,5.1129,3561.0,3560.8,0.1408]
[1754074511415,5.1129,3561.0,3560.9,5.453285]
[1754074511586,0.4579,3560.9,3560.8,3.070768]
[1754074511903,0.1,3560.8,3560.7,3.1408]
[1754074512087,0.5579,3560.8,3560.7,6.328307]
[1754074512397,0.1,3560.8,3560.7,6.328307]
[1754074512572,0.1,3560.8,3560.7,9.13674354]
[1754074512901,0.1,3560.8,3560.7,11.20664954]
[1754074513201,4.655,3560.8,3560.7,11.20664954]
[1754074513359,4.655,3560.8,3560.7,3.1408]
[1754074513561,5.1129,3560.8,3560.7,9.471335]
[1754074513785,4.655,3560.8,3560.7,12.27977154]
[1754074513990,4.655,3560.8,3560.7,6.744854]
[1754074514188,5.1129,3560.8,3560.7,3.1408]
[1754074514606,5.1129,3560.8,3560.7,9.471335]
[1754074514806,5.1129,3560.8,3560.7,9.181857]
[1754074514995,4.655,3560.8,3560.7,9.471335]
[1754074515165,0.1,3561.2,3560.7,12.27977154]
[1754074515372,0.1,3561.2,3561.1,12.13865608]
[1754074515581,4.655,3561.2,3561.1,12.13865608]
[1754074515797,0.1,3561.7,3561.6,2.80772686]
[1754074516012,0.1,3562.1,3561.8,2.8075692]
[1754074516215,0.002,3562.6,3562.3,2.80717513]
[1754074516411,4.556,3562.4,3562.3,12.16578188]
[1754074516718,0.002,3562.6,3562.5,2.80701754]
[1754074517022,0.002,3562.6,3562.5,12.16562271]
[1754074517314,0.002,3562.6,3562.5,12.77006064]
[1754074517897,0.002,3562.6,3562.5,6.43952564]
[1754074518086,0.002,3562.6,3562.5,12.77006064]
[1754074518290,1e-08,3562.6,3562.5,13.18006064]
[1754074518484,1e-08,3562.6,3562.5,12.63006064]
[1754074519008,1e-08,3562.6,3562.5,13.18006064]
[1754074519179,1e-08,3562.6,3562.5,12.63006064]
[1754074519921,0.842487,3565.5,3562.6,3.0]
[1754074520074,0.4388,3565.4,3564.7,12.13582015]
[1754074520412,4.554,3564.9,3564.7,12.13582015]
[1754074520573,0.4388,3565.8,3564.7,12.13582015]
[1754074520774,4.554,3564.9,3564.7,12.13582015]
[1754074521081,4.554,3565.0,3564.7,12.13582015]
[1754074521284,4.554,3565.3,3564.7,12.13582015]
[1754074521685,4.555,3565.2,3564.7,12.13582015]
[1754074521898,0.001,3565.2,3564.7,12.13582015]
[1754074522100,4.554,3565.0,3564.7,12.13582015]
[1754074522306,0.001,3565.2,3564.7,12.13582015]
[1754074522508,0.001,3565.2,3564.7,6.52075384]
[1754074522509,4.9938,3564.8,3564.7,6.52075384]
[1754074522710,10.17450646,3564.8,3564.7,1.059129]
[1754074522938,0.55,3564.5,3563.0,2.80657853]
[1754074523109,0.4388,3564.4,3564.0,3.0]
[1754074523437,0.4388,3564.4,3563.6,2.80607982]
[1754074523438,7.26136492,3564.1,3563.6,2.80614999]
[1754074523639,4.9918,3564.0,3563.7,3.0]
[1754074523813,4.9918,3564.0,3563.8,3.0]
[1754074524132,0.4388,3563.9,3563.6,3.0]
[1754074524318,0.49918,3563.9,3563.8,3.0]
[1754074524511,0.49918,3563.9,3563.8,6.855535]
[1754074524713,0.49918,3563.9,3561.7,4.553]
[1754074524714,3.30509716,3563.9,3563.1,2.80648239]
[1754074525030,0.55,3563.3,3562.4,2.80707956]
[1754074525184,2.80637337,3563.4,3562.8,3.0]
[1754074525185,0.9888,3563.4,3562.8,3.0]
[1754074525385,5.66063715,3563.3,3563.2,3.0]
[1754074525724,0.55,3563.0,3561.9,2.80748746]
[1754074525924,2.80677827,3562.9,3562.0,6.66294656]
[1754074526131,0.4388,3563.0,3562.3,3.0]
[1754074526440,4.554,3562.9,3562.8,3.855535]
[1754074526728,4.9928,3562.9,3562.8,3.0]
[1754074526929,4.9928,3562.9,3562.8,6.855535]
[1754074527142,0.4388,3563.4,3562.9,3.0]
[1754074527432,4.555,3563.3,3563.2,3.548781]
[1754074527597,4.555,3563.3,3563.2,6.35524709]
[1754074527990,4.555,3563.3,3563.2,6.66200109]
[1754074528189,0.5788,3564.0,3563.4,2.80630492]
[1754074528462,4.553,3563.9,3563.8,2.80597587]
[1754074528724,6.741,3564.3,3564.2,6.855535]
[1754074528929,11.296,3564.3,3564.2,6.855535]
[1754074529127,11.296,3564.3,3564.2,6.995535]
[1754074529339,11.296,3564.3,3564.2,6.855535]
[1754074529637,6.741,3564.3,3564.2,6.855535]
[1754074529792,11.299,3564.3,3564.2,6.995535]
[1754074530123,11.299,3564.3,3564.2,8.56320369]
[1754074530727,11.299,3564.3,3564.2,3.14]
[1754074530932,11.299,3564.3,3564.2,5.94567869]
[1754074531233,11.299,3564.3,3564.2,9.80121369]
[1754074531527,11.3,3564.3,3564.2,9.80121369]
[1754074531730,11.041,3564.3,3564.2,9.80121369]
[1754074531889,15.6,3564.3,3564.2,9.80121369]
[1754074532530,15.6,3564.3,3564.2,3.14]
[1754074532718,15.6,3564.3,3564.2,9.80121369]
[1754074532916,15.6,3564.3,3564.2,6.995535]
[1754074533091,17.5988,3564.3,3564.2,3.14]
[1754074533293,17.5988,3564.3,3561.7,7.26136492]
[1754074533294,0.55,3564.2,3563.6,0.14]
[1754074533499,0.4388,3564.1,3563.8,3.0]
[1754074533727,0.4388,3564.0,3563.7,3.855535]
[1754074534043,11.041,3564.3,3564.2,2.80567869]
[1754074534343,15.599,3564.3,3564.2,6.855535]
[1754074534647,15.599,3564.3,3564.2,6.995535]
[1754074534793,11.041,3564.3,3564.2,9.80121369]
[1754074534989,15.599,3564.3,3564.2,9.80121369]
[1754074535190,11.041,3564.3,3564.2,9.80121369]
[1754074535396,11.298,3564.3,3564.2,9.80121369]
[1754074535824,0.001,3564.8,3564.7,2.80528515]
[1754074535991,0.001,3564.8,3564.7,9.66082015]
[1754074535992,4.558,3564.8,3564.7,9.66082015]
[1754074536214,0.001,3564.8,3564.7,9.80082015]
[1754074536400,4.557,3564.8,3564.7,9.80082015]
[1754074536595,4.557,3564.8,3564.7,5.94528515]
[1754074537001,0.001,3564.8,3564.7,9.80082015]
[1754074537416,4.555,3564.8,3564.7,9.80082015]
[1754074537621,0.001,3565.2,3565.1,2.8049704]
[1754074537821,4.555,3565.2,3565.1,9.6605054]
[1754074539028,4.555,3565.2,3565.1,5.8049704]
[1754074539245,4.558,3565.2,3565.1,9.6605054]
[1754074539834,1e-08,3565.2,3565.1,10.0900054]
[1754074540033,7.1778,3566.5,3565.2,3.0]
[1754074540273,4.556,3566.4,3566.1,9.474166]
[1754074540417,4.9948,3566.4,3566.2,3.0]
[1754074540624,6.739,3566.5,3566.3,2.569394]
[1754074540856,5.105,3566.4,3564.8,30.0]
[1754074541057,5.105,3566.4,3564.0,2.80581525]
[1754074541058,2.80418693,3566.1,3565.4,2.80470088]
[1754074541368,4.9928,3566.0,3565.8,3.0]
[1754074541521,2.2643,3565.9,3565.4,0.21127352]
[1754074541715,0.55,3565.8,3564.1,30.0]
[1754074541921,0.55,3565.7,3564.8,15.0913815]
[1754074542116,0.55,3565.7,3563.9,0.6413632]
[1754074542117,2.80489224,3565.2,3563.9,3.01776002]
[1754074542323,2.80504908,3565.0,3564.0,30.0]
[1754074542550,4.9938,3565.1,3564.4,17.307972]
[1754074542825,2.80552822,3564.4,3563.7,2.80606366]
[1754074543164,4.9928,3564.3,3562.8,30.0]
[1754074543318,4.554,3564.2,3563.9,2.80588978]
[1754074543519,4.554,3564.2,3564.1,26.609678]
[1754074543860,0.4388,3564.8,3564.4,28.591158]
[1754074544059,4.554,3564.7,3563.6,3.0]
[1754074544268,4.9928,3564.7,3564.5,3.0]
[1754074544467,0.4388,3564.6,3563.6,3.0]
[1754074544788,0.4388,3564.6,3564.2,3.0]
[1754074544931,0.4388,3564.5,3562.8,2.80677559]
[1754074545136,0.4388,3564.5,3562.9,30.0]
[1754074545137,2.2643,3564.5,3562.9,30.0]
[1754074545330,2.2643,3564.5,3563.1,30.0]
[1754074545532,3.35553367,3564.4,3563.4,3.0]
[1754074545762,3.35577254,3564.1,3563.4,2.80629444]
[1754074545960,0.4533,3564.3,3563.5,18.52611435]
[1754074546159,4.552,3564.2,3563.9,3.0]
[1754074546366,0.55,3564.0,3562.8,6.510332]
[1754074546544,2.80636237,3563.4,3562.7,2.80684996]
[1754074546756,0.4533,3563.6,3563.0,5.80662363]
[1754074546956,4.554,3563.3,3563.2,3.0]
[1754074547133,0.55,3563.9,3563.4,17.873191]
[1754074547334,5.104,3563.8,3563.7,3.0]
[1754074547634,6.8785,3563.8,3563.4,0.14]
[1754074547834,2.4212,3563.8,3563.7,7.020223]
[1754074548034,6.9742,3563.8,3563.7,2.228]
[1754074548337,7.4265,3563.8,3563.6,3.0]
[1754074548652,7.4265,3563.8,3562.4,2.80706498]
[1754074548653,0.55,3563.6,3562.6,3.0]
[1754074548977,0.55,3563.4,3562.6,3.01920937]
[1754074549144,0.55,3563.2,3563.0,3.793275]
[1754074549351,0.55,3563.2,3563.1,6.518925]
[1754074549877,0.55,3563.2,3562.3,2.80709882]
[1754074549878,0.55,3563.0,3562.3,2.80709882]
[1754074550180,0.55,3563.0,3561.7,0.51019202]
[1754074550181,2.80721076,3562.3,3561.7,2.160134]
[1754074550362,4.552,3562.2,3561.7,2.160134]
[1754074550536,2.3245,3562.1,3561.0,0.51074175]
[1754074550737,2.3245,3562.1,3560.8,30.0]
[1754074550738,2.3245,3562.1,3560.9,30.0]
[1754074551038,2.3245,3562.1,3560.9,0.21446319]
[1754074551039,0.55,3561.8,3560.9,0.21446319]
[1754074551343,1.8712,3562.1,3560.0,2.80892722]
[1754074551344,0.55,3561.6,3560.0,2.80892722]
[1754074551554,0.55,3561.4,3560.1,30.0]
[1754074551782,0.55,3561.2,3560.9,3.0]
[1754074552074,6.8765,3561.1,3560.7,3.0]
[1754074552298,6.8765,3561.1,3560.6,5.370029]
[1754074552299,0.4533,3561.0,3560.4,9.603392]
[1754074552437,0.4533,3561.0,3560.7,3.0]
[1754074552438,2.3245,3561.0,3560.7,3.0]
[1754074552631,2.4212,3561.0,3560.9,7.5922]
[1754074552834,2.4212,3561.0,3560.8,3.0]
[1754074553034,0.55,3561.4,3561.1,3.0]
[1754074553270,0.55,3561.4,3560.5,2.8085755]
[1754074553271,7.91097393,3561.3,3560.1,2.80890986]
[1754074553434,5.5563,3561.3,3560.4,3.0]
[1754074553659,5.5563,3561.3,3560.9,12.47100228]
[1754074553903,5.103,3561.3,3561.1,3.0]
[1754074554061,0.4533,3561.2,3560.2,3.0]
[1754074554259,6.739,3561.5,3561.2,18.080916]
[1754074554260,0.55,3561.4,3561.2,18.080916]
[1754074554465,4.553,3561.3,3561.1,2.80810108]
[1754074554785,4.553,3561.3,3561.2,15.08503123]
[1754074554981,6.739,3561.5,3561.3,24.19077021]
[1754074555192,7.289,3561.5,3561.3,9.858261]
[1754074555357,4.553,3561.4,3560.9,22.261925]
[1754074555560,6.739,3561.5,3561.1,4.03782]
[1754074555862,6.739,3561.5,3561.4,23.45560253]
[1754074556075,11.292,3561.5,3561.0,2.80813877]
[1754074556277,11.292,3561.5,3559.7,30.0]
[1754074556512,11.7453,3561.5,3561.3,2.039408]
[1754074557085,0.4533,3561.4,3560.5,3.0]